[Event "Titled Tuesday Blitz May 23 Late 2023"]
[White "Kohler, Aran"]
[Black "Mihajlov, Sebastian"]
[WhiteFideId "1002856"]
[BlackFideId "1512110"]
[WhiteElo "2369"]
[BlackElo "2478"]
[Result "0-1"]
[Round "02"]
[TimeControl "180+2"]
[Date "2023.05.23"]
[WhiteClock "0:00:18"]
[BlackClock "0:00:10"]

1. d4 {[%clk 0:02:59]}  Nf6 {[%clk 0:02:27]} 2. c3 {[%clk 0:02:59]}  g6 {[%clk 0:02:19]} 3. Bg5 {[%clk 0:02:59]}  Bg7 {[%clk 0:02:20]} 4. Nd2 {[%clk 0:02:58]}  d5 {[%clk 0:02:20]} 5. e3 {[%clk 0:02:58]}  O-O {[%clk 0:02:19]} 6. Bd3 {[%clk 0:02:57]}  c5 {[%clk 0:02:19]} 7. Ngf3 {[%clk 0:02:54]}  Nc6 {[%clk 0:02:20]} 8. h4 {[%clk 0:02:53]}  h6 {[%clk 0:02:17]} 9. h5 {[%clk 0:02:52]}  hxg5 {[%clk 0:02:06]} 10. hxg6 {[%clk 0:02:51]}  g4 {[%clk 0:02:03]} 11. Ng5 {[%clk 0:02:49]}  e5 {[%clk 0:01:53]} 12. gxf7+ {[%clk 0:02:45]}  Rxf7 {[%clk 0:01:54]} 13. Nxf7 {[%clk 0:02:43]}  Kxf7 {[%clk 0:01:54]} 14. dxc5 {[%clk 0:02:22]}  e4 {[%clk 0:01:46]} 15. Be2 {[%clk 0:02:19]}  a5 {[%clk 0:01:42]} 16. Qc2 {[%clk 0:02:17]}  Qe7 {[%clk 0:01:40]} 17. O-O-O {[%clk 0:02:16]}  a4 {[%clk 0:01:39]} 18. Kb1 {[%clk 0:01:59]}  Qxc5 {[%clk 0:01:37]} 19. a3 {[%clk 0:01:50]}  Be6 {[%clk 0:01:31]} 20. Nf1 {[%clk 0:01:44]}  Ne5 {[%clk 0:01:13]} 21. Ng3 {[%clk 0:01:43]}  Rh8 {[%clk 0:01:09]} 22. Rxh8 {[%clk 0:01:41]}  Bxh8 {[%clk 0:01:09]} 23. Ka1 {[%clk 0:01:26]}  b5 {[%clk 0:01:04]} 24. Rh1 {[%clk 0:01:15]}  Bg7 {[%clk 0:01:04]} 25. Nh5 {[%clk 0:01:13]}  Nxh5 {[%clk 0:01:03]} 26. Rxh5 {[%clk 0:01:13]}  Kg6 {[%clk 0:01:04]} 27. Rh1 {[%clk 0:01:11]}  Nc4 {[%clk 0:00:42]} 28. Bxc4 {[%clk 0:01:02]}  Qxc4 {[%clk 0:00:43]} 29. Qb1 {[%clk 0:00:49]}  Qb3 {[%clk 0:00:22]} 30. Rc1 {[%clk 0:00:42]}  Qc4 {[%clk 0:00:16]} 31. f3 {[%clk 0:00:39]}  Bf5 {[%clk 0:00:11]} 32. fxg4 {[%clk 0:00:39]}  Bxg4 {[%clk 0:00:12]} 33. Qc2 {[%clk 0:00:33]}  Be2 {[%clk 0:00:12]} 34. Re1 {[%clk 0:00:30]}  Bg4 {[%clk 0:00:11]} 35. Qf2 {[%clk 0:00:30]}  Qc7 {[%clk 0:00:11]} 36. Qh4 {[%clk 0:00:29]}  Be6 {[%clk 0:00:10]} 37. Qg3+ {[%clk 0:00:28]}  Qxg3 {[%clk 0:00:10]} 38. Re2 {[%clk 0:00:24]}  Qg4 {[%clk 0:00:08]} 39. Rd2 {[%clk 0:00:23]}  Bh6 {[%clk 0:00:09]} 40. Ka2 {[%clk 0:00:22]}  Bxe3 {[%clk 0:00:10]} 41. Rc2 {[%clk 0:00:18]}  d4+ {[%clk 0:00:10]} 0-1


[Site "https://www.chess.com"]

[Event "Titled Tuesday Blitz May 23 Late 2023"]
[White "Chabris, Christopher"]
[Black "Annaberdiyev, Meylis"]
[WhiteFideId "2005263"]
[BlackFideId "14000563"]
[WhiteElo "2361"]
[BlackElo "2416"]
[Result "0-1"]
[Round "02"]
[TimeControl "180+2"]
[Date "2023.05.23"]
[WhiteClock "0:00:28"]
[BlackClock "0:01:02"]

1. e4 {[%clk 0:02:59]}  c5 {[%clk 0:02:59]} 2. Nf3 {[%clk 0:02:59]}  e6 {[%clk 0:02:58]} 3. d4 {[%clk 0:02:59]}  cxd4 {[%clk 0:02:58]} 4. Nxd4 {[%clk 0:02:59]}  Nc6 {[%clk 0:02:59]} 5. Nc3 {[%clk 0:02:59]}  Qc7 {[%clk 0:02:59]} 6. g3 {[%clk 0:02:59]}  a6 {[%clk 0:02:59]} 7. Bg2 {[%clk 0:02:59]}  Nf6 {[%clk 0:02:59]} 8. O-O {[%clk 0:02:59]}  h5 {[%clk 0:03:00]} 9. Nxc6 {[%clk 0:02:54]}  dxc6 {[%clk 0:02:55]} 10. e5 {[%clk 0:02:51]}  Qxe5 {[%clk 0:02:55]} 11. Bf4 {[%clk 0:02:49]}  Qf5 {[%clk 0:02:55]} 12. Re1 {[%clk 0:02:47]}  h4 {[%clk 0:02:51]} 13. Ne4 {[%clk 0:02:19]}  hxg3 {[%clk 0:02:48]} 14. hxg3 {[%clk 0:02:12]}  Nxe4 {[%clk 0:02:10]} 15. Bxe4 {[%clk 0:02:04]}  Qh5 {[%clk 0:02:10]} 16. Qd3 {[%clk 0:01:35]}  Bc5 {[%clk 0:02:07]} 17. Bg2 {[%clk 0:01:25]}  f6 {[%clk 0:01:44]} 18. Bd6 {[%clk 0:01:19]}  Kf7 {[%clk 0:01:26]} 19. b4 {[%clk 0:00:59]}  Ba7 {[%clk 0:01:16]} 20. c4 {[%clk 0:00:58]}  e5 {[%clk 0:01:13]} 21. c5 {[%clk 0:00:55]}  Qh2+ {[%clk 0:01:12]} 22. Kf1 {[%clk 0:00:54]}  Bh3 {[%clk 0:01:12]} 23. Qc4+ {[%clk 0:00:46]}  Kg6 {[%clk 0:01:11]} 24. Qc2+ {[%clk 0:00:38]}  f5 {[%clk 0:01:04]} 25. Bxh3 {[%clk 0:00:33]}  Qxh3+ {[%clk 0:01:05]} 26. Ke2 {[%clk 0:00:30]}  Qg4+ {[%clk 0:01:04]} 27. f3 {[%clk 0:00:29]}  Rh2+ {[%clk 0:01:02]} 28. Ke3 {[%clk 0:00:28]}  Qd4# {[%clk 0:01:02]} 0-1


[Site "https://www.chess.com"]

[Event "Titled Tuesday Blitz May 23 Late 2023"]
[White "Alexikov, Alexander"]
[Black "Prohaszka, Peter"]
[WhiteFideId "14103958"]
[BlackFideId "726265"]
[WhiteElo "2186"]
[BlackElo "2626"]
[Result "0-1"]
[Round "02"]
[TimeControl "180+2"]
[Date "2023.05.23"]
[WhiteClock "0:00:50"]
[BlackClock "0:00:22"]

1. e4 {[%clk 0:03:00]}  c6 {[%clk 0:02:55]} 2. d3 {[%clk 0:02:58]}  d5 {[%clk 0:02:56]} 3. Nd2 {[%clk 0:02:57]}  e5 {[%clk 0:02:57]} 4. g3 {[%clk 0:02:57]}  Bd6 {[%clk 0:02:57]} 5. Bg2 {[%clk 0:02:57]}  Nf6 {[%clk 0:02:57]} 6. Ngf3 {[%clk 0:02:57]}  O-O {[%clk 0:02:58]} 7. O-O {[%clk 0:02:57]}  Re8 {[%clk 0:02:59]} 8. Re1 {[%clk 0:02:57]}  a5 {[%clk 0:02:59]} 9. a4 {[%clk 0:02:55]}  Nbd7 {[%clk 0:02:59]} 10. Qe2 {[%clk 0:02:54]}  Nc5 {[%clk 0:02:54]} 11. h3 {[%clk 0:02:52]}  b6 {[%clk 0:02:54]} 12. b3 {[%clk 0:02:45]}  Ba6 {[%clk 0:02:54]} 13. Qd1 {[%clk 0:02:40]}  Qc7 {[%clk 0:02:38]} 14. Bb2 {[%clk 0:02:39]}  Rad8 {[%clk 0:02:36]} 15. exd5 {[%clk 0:02:31]}  cxd5 {[%clk 0:02:36]} 16. d4 {[%clk 0:02:31]}  exd4 {[%clk 0:02:13]} 17. Nxd4 {[%clk 0:02:29]}  Nce4 {[%clk 0:02:13]} 18. N2f3 {[%clk 0:01:54]}  Nxf2 {[%clk 0:01:58]} 19. Rxe8+ {[%clk 0:01:51]}  Rxe8 {[%clk 0:01:58]} 20. Kxf2 {[%clk 0:01:51]}  Bxg3+ {[%clk 0:01:58]} 21. Kg1 {[%clk 0:01:51]}  Ne4 {[%clk 0:01:55]} 22. Nf5 {[%clk 0:01:36]}  Bf2+ {[%clk 0:01:23]} 23. Kh1 {[%clk 0:01:34]}  Qf4 {[%clk 0:00:56]} 24. N3d4 {[%clk 0:01:01]}  Be3 {[%clk 0:00:31]} 25. Qf3 {[%clk 0:00:55]}  Nf2+ {[%clk 0:00:26]} 26. Kg1 {[%clk 0:00:54]}  Nxh3+ {[%clk 0:00:24]} 27. Kh1 {[%clk 0:00:51]}  Nf2+ {[%clk 0:00:24]} 28. Kg1 {[%clk 0:00:51]}  Ng4+ {[%clk 0:00:23]} 29. Kh1 {[%clk 0:00:50]}  Qh2# {[%clk 0:00:22]} 0-1


[Site "https://www.chess.com"]

[Event "Titled Tuesday Blitz May 23 Late 2023"]
[White "Sipila, Vilka"]
[Black "FuenfgegenWilly"]
[WhiteFideId "505455"]
[WhiteElo "2343"]
[BlackElo "2347"]
[Result "0-1"]
[Round "02"]
[TimeControl "180+2"]
[Date "2023.05.23"]
[WhiteClock "0:01:09"]
[BlackClock "0:00:13"]

1. b3 {[%clk 0:03:00]}  a5 {[%clk 0:02:57]} 2. Bb2 {[%clk 0:03:01]}  a4 {[%clk 0:02:58]} 3. b4 {[%clk 0:03:02]}  Nf6 {[%clk 0:02:55]} 4. e3 {[%clk 0:03:02]}  e6 {[%clk 0:02:49]} 5. a3 {[%clk 0:03:01]}  b6 {[%clk 0:02:47]} 6. c4 {[%clk 0:03:01]}  Bb7 {[%clk 0:02:46]} 7. Nc3 {[%clk 0:03:02]}  d5 {[%clk 0:02:44]} 8. cxd5 {[%clk 0:03:01]}  Nxd5 {[%clk 0:02:43]} 9. Nxa4 {[%clk 0:02:55]}  Nd7 {[%clk 0:02:33]} 10. Nf3 {[%clk 0:02:53]}  c5 {[%clk 0:02:22]} 11. b5 {[%clk 0:02:42]}  Qc7 {[%clk 0:02:18]} 12. Nc3 {[%clk 0:02:41]}  N7f6 {[%clk 0:02:16]} 13. Be2 {[%clk 0:02:36]}  Bd6 {[%clk 0:02:15]} 14. O-O {[%clk 0:02:33]}  Rg8 {[%clk 0:02:12]} 15. Rc1 {[%clk 0:02:27]}  g5 {[%clk 0:02:11]} 16. Nxd5 {[%clk 0:02:23]}  Nxd5 {[%clk 0:02:10]} 17. d4 {[%clk 0:02:19]}  g4 {[%clk 0:01:36]} 18. Ne5 {[%clk 0:02:18]}  f6 {[%clk 0:01:32]} 19. Nxg4 {[%clk 0:02:16]}  h5 {[%clk 0:01:32]} 20. e4 {[%clk 0:02:16]}  hxg4 {[%clk 0:01:27]} 21. exd5 {[%clk 0:02:10]}  Bxh2+ {[%clk 0:01:26]} 22. Kh1 {[%clk 0:02:10]}  Bxd5 {[%clk 0:01:26]} 23. Bxg4 {[%clk 0:02:10]}  Qf4 {[%clk 0:01:19]} 24. Bf3 {[%clk 0:01:39]}  Qh4 {[%clk 0:01:07]} 25. Re1 {[%clk 0:01:31]}  Bg3+ {[%clk 0:00:42]} 26. Kg1 {[%clk 0:01:32]}  Bxf2+ {[%clk 0:00:39]} 27. Kf1 {[%clk 0:01:32]}  Bxe1 {[%clk 0:00:37]} 28. Qxe1 {[%clk 0:01:33]}  Qh1+ {[%clk 0:00:33]} 29. Kf2 {[%clk 0:01:32]}  Qh4+ {[%clk 0:00:33]} 30. Ke3 {[%clk 0:01:24]}  Qg5+ {[%clk 0:00:29]} 31. Kf2 {[%clk 0:01:22]}  Qg3+ {[%clk 0:00:23]} 32. Ke3 {[%clk 0:01:21]}  Bxf3 {[%clk 0:00:19]} 33. Qxg3 {[%clk 0:01:19]}  Rxg3 {[%clk 0:00:19]} 34. gxf3 {[%clk 0:01:20]}  cxd4+ {[%clk 0:00:15]} 35. Kf4 {[%clk 0:01:20]}  Rg5 {[%clk 0:00:14]} 36. Rc6 {[%clk 0:01:20]}  Rf5+ {[%clk 0:00:14]} 37. Ke4 {[%clk 0:01:20]}  Re5+ {[%clk 0:00:15]} 38. Kxd4 {[%clk 0:01:21]}  Ra4+ {[%clk 0:00:14]} 39. Kd3 {[%clk 0:01:21]}  Rd5+ {[%clk 0:00:13]} 40. Ke3 {[%clk 0:01:21]}  Rxb5 {[%clk 0:00:10]} 41. Bxf6 {[%clk 0:01:21]}  Kd7 {[%clk 0:00:10]} 42. Rc3 {[%clk 0:01:21]}  Rc5 {[%clk 0:00:10]} 43. Rb3 {[%clk 0:01:20]}  b5 {[%clk 0:00:10]} 44. Bd4 {[%clk 0:01:20]}  Rd5 {[%clk 0:00:10]} 45. Bf6 {[%clk 0:01:20]}  Kc6 {[%clk 0:00:11]} 46. Bc3 {[%clk 0:01:20]}  Rc4 {[%clk 0:00:11]} 47. Bb4 {[%clk 0:01:21]}  Rd1 {[%clk 0:00:11]} 48. Rb2 {[%clk 0:01:19]}  Re1+ {[%clk 0:00:10]} 49. Kd3 {[%clk 0:01:19]}  Rf1 {[%clk 0:00:10]} 50. Ke2 {[%clk 0:01:19]}  Rg1 {[%clk 0:00:10]} 51. Ke3 {[%clk 0:01:19]}  Rg5 {[%clk 0:00:09]} 52. Rh2 {[%clk 0:01:17]}  Re5+ {[%clk 0:00:09]} 53. Kd3 {[%clk 0:01:18]}  Rd5+ {[%clk 0:00:09]} 54. Ke3 {[%clk 0:01:18]}  Rd1 {[%clk 0:00:08]} 55. Rh6 {[%clk 0:01:18]}  Kd5 {[%clk 0:00:08]} 56. Rh8 {[%clk 0:01:17]}  Rb1 {[%clk 0:00:07]} 57. Rh5+ {[%clk 0:01:15]}  e5 {[%clk 0:00:07]} 58. Bf8 {[%clk 0:01:07]}  Rb3+ {[%clk 0:00:08]} 59. Ke2 {[%clk 0:01:07]}  Rc2+ {[%clk 0:00:08]} 60. Kd1 {[%clk 0:01:08]}  Ra2 {[%clk 0:00:06]} 61. Kc1 {[%clk 0:01:08]}  Rxf3 {[%clk 0:00:05]} 62. Kb1 {[%clk 0:01:01]}  Re2 {[%clk 0:00:06]} 63. Bh6 {[%clk 0:01:01]}  Rf1+ {[%clk 0:00:06]} 64. Bc1 {[%clk 0:01:01]}  Ree1 {[%clk 0:00:07]} 65. Kb2 {[%clk 0:01:01]}  Rxc1 {[%clk 0:00:07]} 66. Rh8 {[%clk 0:01:02]}  Rc4 {[%clk 0:00:07]} 67. Kb3 {[%clk 0:01:01]}  Rf3+ {[%clk 0:00:07]} 68. Kb2 {[%clk 0:01:01]}  Rfc3 {[%clk 0:00:08]} 69. Rd8+ {[%clk 0:01:00]}  Ke4 {[%clk 0:00:09]} 70. Rb8 {[%clk 0:01:01]}  Kf4 {[%clk 0:00:09]} 71. Rxb5 {[%clk 0:01:01]}  e4 {[%clk 0:00:10]} 72. Rh5 {[%clk 0:01:00]}  Rc2+ {[%clk 0:00:11]} 73. Kb3 {[%clk 0:01:00]}  R2c3+ {[%clk 0:00:12]} 74. Kb2 {[%clk 0:01:00]}  Ke3 {[%clk 0:00:12]} 75. Rh2 {[%clk 0:01:00]}  Kd4 {[%clk 0:00:13]} 76. Rd2+ {[%clk 0:01:00]}  Rd3 {[%clk 0:00:14]} 77. Rh2 {[%clk 0:01:00]}  e3 {[%clk 0:00:12]} 78. Rh4+ {[%clk 0:01:00]}  Kc5 {[%clk 0:00:12]} 79. Rh5+ {[%clk 0:01:01]}  Rd5 {[%clk 0:00:12]} 80. Rh8 {[%clk 0:01:01]}  Re4 {[%clk 0:00:13]} 81. Rc8+ {[%clk 0:01:01]}  Kd4 {[%clk 0:00:13]} 82. Kc2 {[%clk 0:01:01]}  Rc5+ {[%clk 0:00:13]} 83. Rxc5 {[%clk 0:01:00]}  Kxc5 {[%clk 0:00:14]} 84. Kd3 {[%clk 0:01:00]}  Ra4 {[%clk 0:00:15]} 85. Kxe3 {[%clk 0:01:01]}  Rxa3+ {[%clk 0:00:16]} 86. Ke4 {[%clk 0:01:01]}  Rc3 {[%clk 0:00:15]} 87. Ke5 {[%clk 0:01:01]}  Re3+ {[%clk 0:00:15]} 88. Kf4 {[%clk 0:01:02]}  Kd4 {[%clk 0:00:15]} 89. Kf5 {[%clk 0:01:03]}  Re2 {[%clk 0:00:14]} 90. Kf4 {[%clk 0:01:03]}  Rf2+ {[%clk 0:00:14]} 91. Kg4 {[%clk 0:01:03]}  Ke5 {[%clk 0:00:14]} 92. Kg3 {[%clk 0:01:04]}  Rf8 {[%clk 0:00:14]} 93. Kg4 {[%clk 0:01:05]}  Rf7 {[%clk 0:00:14]} 94. Kg5 {[%clk 0:01:06]}  Rg7+ {[%clk 0:00:14]} 95. Kh5 {[%clk 0:01:06]}  Kf4 {[%clk 0:00:14]} 96. Kh6 {[%clk 0:01:07]}  Rg1 {[%clk 0:00:13]} 97. Kh5 {[%clk 0:01:08]}  Rg2 {[%clk 0:00:13]} 98. Kh6 {[%clk 0:01:09]}  Kf5 {[%clk 0:00:14]} 99. Kh5 {[%clk 0:01:09]}  Rh2# {[%clk 0:00:13]} 0-1


[Site "https://www.chess.com"]

[Event "Titled Tuesday Blitz May 23 Late 2023"]
[White "Filgueira, Hernan"]
[Black "StarkyNZ"]
[WhiteFideId "101770"]
[WhiteElo "2363"]
[BlackElo "2346"]
[Result "1-0"]
[Round "02"]
[TimeControl "180+2"]
[Date "2023.05.23"]
[WhiteClock "0:00:21"]
[BlackClock "0:00:22"]

1. c4 {[%clk 0:02:59]}  e5 {[%clk 0:02:59]} 2. Nc3 {[%clk 0:02:58]}  Bb4 {[%clk 0:02:58]} 3. Nd5 {[%clk 0:02:57]}  Be7 {[%clk 0:02:58]} 4. e3 {[%clk 0:02:57]}  Nc6 {[%clk 0:02:57]} 5. a3 {[%clk 0:02:56]}  a5 {[%clk 0:02:57]} 6. Qc2 {[%clk 0:02:55]}  Nf6 {[%clk 0:02:56]} 7. Nf3 {[%clk 0:02:54]}  d6 {[%clk 0:02:56]} 8. b3 {[%clk 0:02:51]}  Bg4 {[%clk 0:02:53]} 9. Be2 {[%clk 0:02:50]}  Nxd5 {[%clk 0:02:47]} 10. cxd5 {[%clk 0:02:50]}  Nb8 {[%clk 0:02:45]} 11. Bb2 {[%clk 0:02:48]}  Nd7 {[%clk 0:02:44]} 12. d3 {[%clk 0:02:39]}  O-O {[%clk 0:02:41]} 13. h3 {[%clk 0:02:36]}  Bh5 {[%clk 0:02:38]} 14. g4 {[%clk 0:02:36]}  Bg6 {[%clk 0:02:38]} 15. h4 {[%clk 0:02:36]}  e4 {[%clk 0:02:28]} 16. dxe4 {[%clk 0:02:32]}  Nc5 {[%clk 0:02:28]} 17. Nd2 {[%clk 0:02:25]}  Bxh4 {[%clk 0:02:26]} 18. Kf1 {[%clk 0:02:13]}  Re8 {[%clk 0:02:21]} 19. f3 {[%clk 0:02:11]}  Bf6 {[%clk 0:02:15]} 20. Kg2 {[%clk 0:02:09]}  Qe7 {[%clk 0:01:58]} 21. Bd4 {[%clk 0:02:03]}  b6 {[%clk 0:01:55]} 22. Qb2 {[%clk 0:02:02]}  Bxd4 {[%clk 0:01:53]} 23. exd4 {[%clk 0:01:58]}  Nd7 {[%clk 0:01:51]} 24. Bb5 {[%clk 0:01:57]}  Rf8 {[%clk 0:01:41]} 25. Qc3 {[%clk 0:01:54]}  Rac8 {[%clk 0:01:41]} 26. Rae1 {[%clk 0:01:47]}  Nf6 {[%clk 0:01:32]} 27. Qe3 {[%clk 0:01:40]}  Nd7 {[%clk 0:01:23]} 28. Qf4 {[%clk 0:01:36]}  Nb8 {[%clk 0:01:23]} 29. Nf1 {[%clk 0:01:32]}  c6 {[%clk 0:01:23]} 30. dxc6 {[%clk 0:01:30]}  Nxc6 {[%clk 0:01:23]} 31. Qd2 {[%clk 0:01:27]}  Qf6 {[%clk 0:01:22]} 32. Rd1 {[%clk 0:01:24]}  Rfd8 {[%clk 0:01:19]} 33. Ne3 {[%clk 0:01:19]}  Ne7 {[%clk 0:01:17]} 34. Rc1 {[%clk 0:01:12]}  Qf4 {[%clk 0:01:16]} 35. Nc4 {[%clk 0:01:06]}  Qxd2+ {[%clk 0:01:11]} 36. Nxd2 {[%clk 0:01:06]}  d5 {[%clk 0:01:10]} 37. e5 {[%clk 0:01:03]}  Rxc1 {[%clk 0:00:56]} 38. Rxc1 {[%clk 0:01:01]}  Rc8 {[%clk 0:00:57]} 39. Rxc8+ {[%clk 0:00:56]}  Nxc8 {[%clk 0:00:58]} 40. b4 {[%clk 0:00:43]}  h5 {[%clk 0:00:57]} 41. gxh5 {[%clk 0:00:42]}  Bxh5 {[%clk 0:00:57]} 42. bxa5 {[%clk 0:00:41]}  bxa5 {[%clk 0:00:58]} 43. Nb3 {[%clk 0:00:41]}  a4 {[%clk 0:00:52]} 44. Bxa4 {[%clk 0:00:39]}  Nb6 {[%clk 0:00:53]} 45. Bb5 {[%clk 0:00:38]}  Nc4 {[%clk 0:00:48]} 46. a4 {[%clk 0:00:35]}  f6 {[%clk 0:00:47]} 47. exf6 {[%clk 0:00:34]}  gxf6 {[%clk 0:00:47]} 48. a5 {[%clk 0:00:32]}  Ne3+ {[%clk 0:00:41]} 49. Kf2 {[%clk 0:00:31]}  Nc4 {[%clk 0:00:37]} 50. a6 {[%clk 0:00:30]}  Nb6 {[%clk 0:00:38]} 51. a7 {[%clk 0:00:28]}  Kf8 {[%clk 0:00:38]} 52. Bc6 {[%clk 0:00:28]}  Be8 {[%clk 0:00:36]} 53. a8=Q {[%clk 0:00:25]}  Nxa8 {[%clk 0:00:37]} 54. Bxa8 {[%clk 0:00:26]}  Bf7 {[%clk 0:00:38]} 55. Bc6 {[%clk 0:00:25]}  Ke7 {[%clk 0:00:38]} 56. Bb5 {[%clk 0:00:25]}  Kd6 {[%clk 0:00:39]} 57. Bd3 {[%clk 0:00:24]}  Be6 {[%clk 0:00:38]} 58. Nc5 {[%clk 0:00:24]}  Bf7 {[%clk 0:00:39]} 59. Ke3 {[%clk 0:00:25]}  Bh5 {[%clk 0:00:37]} 60. Kf4 {[%clk 0:00:24]}  Ke7 {[%clk 0:00:35]} 61. Bc2 {[%clk 0:00:24]}  Be8 {[%clk 0:00:34]} 62. Bb3 {[%clk 0:00:23]}  Kd6 {[%clk 0:00:32]} 63. Nd3 {[%clk 0:00:23]}  Bh5 {[%clk 0:00:30]} 64. Nb4 {[%clk 0:00:22]}  Bf7 {[%clk 0:00:29]} 65. Kf5 {[%clk 0:00:22]}  Bh5 {[%clk 0:00:22]} 66. f4 {[%clk 0:00:21]} 1-0


[Site "https://www.chess.com"]

[Event "Titled Tuesday Blitz May 23 Late 2023"]
[White "Shapiro, Daniel"]
[Black "Erzhanov, Arman"]
[WhiteFideId "2001780"]
[BlackFideId "4138821"]
[WhiteElo "2346"]
[BlackElo "2138"]
[Result "0-1"]
[Round "02"]
[TimeControl "180+2"]
[Date "2023.05.23"]
[WhiteClock "0:00:31"]
[BlackClock "0:00:30"]

1. d4 {[%clk 0:02:58]}  d6 {[%clk 0:02:59]} 2. e4 {[%clk 0:02:57]}  Nf6 {[%clk 0:02:58]} 3. Nc3 {[%clk 0:02:57]}  c6 {[%clk 0:02:58]} 4. a4 {[%clk 0:02:56]}  e5 {[%clk 0:02:58]} 5. Nge2 {[%clk 0:02:55]}  Be7 {[%clk 0:02:57]} 6. h3 {[%clk 0:02:56]}  h5 {[%clk 0:02:57]} 7. g3 {[%clk 0:02:55]}  O-O {[%clk 0:02:54]} 8. Be3 {[%clk 0:02:55]}  Nbd7 {[%clk 0:02:52]} 9. Bg2 {[%clk 0:02:55]}  Re8 {[%clk 0:02:52]} 10. Qd2 {[%clk 0:02:55]}  exd4 {[%clk 0:02:47]} 11. Bxd4 {[%clk 0:02:54]}  Nc5 {[%clk 0:02:46]} 12. O-O {[%clk 0:02:37]}  Bf8 {[%clk 0:02:46]} 13. e5 {[%clk 0:02:30]}  dxe5 {[%clk 0:02:39]} 14. Be3 {[%clk 0:02:26]}  Qxd2 {[%clk 0:02:38]} 15. Bxd2 {[%clk 0:02:26]}  Bf5 {[%clk 0:02:38]} 16. Rac1 {[%clk 0:02:18]}  Nfe4 {[%clk 0:02:35]} 17. Be3 {[%clk 0:02:17]}  f6 {[%clk 0:02:26]} 18. f3 {[%clk 0:02:16]}  Nxc3 {[%clk 0:02:24]} 19. Nxc3 {[%clk 0:02:17]}  Ne6 {[%clk 0:02:17]} 20. Rfd1 {[%clk 0:02:10]}  Bc5 {[%clk 0:02:13]} 21. Bxc5 {[%clk 0:02:05]}  Nxc5 {[%clk 0:02:14]} 22. g4 {[%clk 0:01:58]}  hxg4 {[%clk 0:02:07]} 23. hxg4 {[%clk 0:01:54]}  Be6 {[%clk 0:02:02]} 24. b4 {[%clk 0:01:52]}  Na6 {[%clk 0:02:00]} 25. b5 {[%clk 0:01:51]}  Nc5 {[%clk 0:01:55]} 26. bxc6 {[%clk 0:01:43]}  bxc6 {[%clk 0:01:56]} 27. Rd6 {[%clk 0:01:42]}  Rac8 {[%clk 0:01:48]} 28. Bf1 {[%clk 0:01:36]}  Nb7 {[%clk 0:01:47]} 29. Rd2 {[%clk 0:01:32]}  Rcd8 {[%clk 0:01:45]} 30. Rh2 {[%clk 0:01:31]}  Nd6 {[%clk 0:01:34]} 31. a5 {[%clk 0:01:18]}  Nc4 {[%clk 0:01:28]} 32. a6 {[%clk 0:01:12]}  Rb8 {[%clk 0:01:18]} 33. Bd3 {[%clk 0:01:12]}  Red8 {[%clk 0:01:04]} 34. Kf2 {[%clk 0:01:09]}  Kf7 {[%clk 0:01:03]} 35. Ne4 {[%clk 0:01:06]}  Nb2 {[%clk 0:00:54]} 36. Be2 {[%clk 0:01:03]}  Bc4 {[%clk 0:00:54]} 37. g5 {[%clk 0:00:57]}  f5 {[%clk 0:00:53]} 38. g6+ {[%clk 0:00:54]}  Ke7 {[%clk 0:00:43]} 39. Nc5 {[%clk 0:00:46]}  Rd2 {[%clk 0:00:44]} 40. Re1 {[%clk 0:00:42]}  Rbd8 {[%clk 0:00:34]} 41. Ke3 {[%clk 0:00:32]}  Bxe2 {[%clk 0:00:32]} 42. Rexe2 {[%clk 0:00:31]}  Nd1# {[%clk 0:00:30]} 0-1


[Site "https://www.chess.com"]

[Event "Titled Tuesday Blitz May 23 Late 2023"]
[White "Bashkansky, Ethan"]
[Black "Baghdasaryan, Vahe"]
[WhiteFideId "2071533"]
[BlackFideId "13303139"]
[WhiteElo "2346"]
[BlackElo "2216"]
[Result "0-1"]
[Round "02"]
[TimeControl "180+2"]
[Date "2023.05.23"]
[WhiteClock "0:00:07"]
[BlackClock "0:01:06"]

1. d4 {[%clk 0:03:00]}  d5 {[%clk 0:02:59]} 2. c4 {[%clk 0:03:01]}  c6 {[%clk 0:02:59]} 3. Nc3 {[%clk 0:03:01]}  Nf6 {[%clk 0:02:57]} 4. e3 {[%clk 0:03:01]}  Bf5 {[%clk 0:02:54]} 5. cxd5 {[%clk 0:03:00]}  cxd5 {[%clk 0:02:53]} 6. Qb3 {[%clk 0:03:00]}  Nc6 {[%clk 0:02:53]} 7. Qxb7 {[%clk 0:02:59]}  Bd7 {[%clk 0:02:52]} 8. Bb5 {[%clk 0:02:32]}  Rb8 {[%clk 0:02:47]} 9. Qa6 {[%clk 0:02:31]}  Nb4 {[%clk 0:02:45]} 10. Qa4 {[%clk 0:01:58]}  Rxb5 {[%clk 0:02:00]} 11. Nxb5 {[%clk 0:01:55]}  e6 {[%clk 0:01:59]} 12. Bd2 {[%clk 0:01:39]}  Nd3+ {[%clk 0:01:54]} 13. Ke2 {[%clk 0:01:37]}  Qb6 {[%clk 0:01:42]} 14. Qxa7 {[%clk 0:01:03]}  Qxb5 {[%clk 0:01:42]} 15. Qa8+ {[%clk 0:00:51]}  Ke7 {[%clk 0:01:41]} 16. Qa3+ {[%clk 0:00:51]}  Nb4+ {[%clk 0:01:35]} 17. Kf3 {[%clk 0:00:43]}  Kd8 {[%clk 0:01:31]} 18. Qa8+ {[%clk 0:00:30]}  Bc8 {[%clk 0:01:26]} 19. Rc1 {[%clk 0:00:23]}  Qa6 {[%clk 0:01:23]} 20. Qxa6 {[%clk 0:00:19]}  Bxa6 {[%clk 0:01:21]} 21. Bxb4 {[%clk 0:00:18]}  Bxb4 {[%clk 0:01:20]} 22. a3 {[%clk 0:00:18]}  Be7 {[%clk 0:01:12]} 23. Ne2 {[%clk 0:00:17]}  Ne4 {[%clk 0:01:10]} 24. g3 {[%clk 0:00:11]}  Nd2+ {[%clk 0:01:05]} 25. Kg2 {[%clk 0:00:07]}  Bxe2 {[%clk 0:01:06]} 0-1


[Site "https://www.chess.com"]